bitfinex/quotes_BTCUSD_20220207
["timestamp","ask_amount","ask_price","bid_price","bid_amount"]
[1644258769056,0.00055538,44154.0,44153.0,0.551802]
[1644258769256,0.00055538,44154.0,44153.0,0.601802]
[1644258769457,0.00055538,44154.0,44153.0,0.701802]
[1644258769857,0.0171441,44160.0,44154.0,0.96320179]
[1644258770058,0.0171441,44160.0,44159.0,0.31459211]
[1644258770256,0.00222117,44162.0,44159.0,0.45979211]
[1644258770559,0.00249869,44162.0,44160.0,0.23425409]
[1644258770762,0.00222117,44162.0,44160.0,0.23425409]
[1644258770955,0.02029514,44163.0,44161.0,0.0452]
[1644258771157,0.02057353,44163.0,44162.0,0.045]
[1644258771359,0.00027752,44167.0,44163.0,0.85]
[1644258771558,0.00027752,44169.0,44167.0,0.46137439]
[1644258771757,0.42222332,44170.0,44167.0,0.50657439]
[1644258771958,0.42250097,44170.0,44167.0,0.60657439]
[1644258772156,0.42027765,44170.0,44167.0,0.60657439]
[1644258772358,0.42027765,44170.0,44167.0,1.00657439]
[1644258772602,0.415,44168.0,44167.0,1.11316039]
[1644258772802,0.415,44168.0,44167.0,1.4494118]
[1644258773406,0.415,44168.0,44167.0,2.0148118]
[1644258774004,0.4209382,44170.0,44168.0,0.85]
[1644258774206,0.42066055,44170.0,44169.0,0.50394527]
[1644258774404,0.42066055,44170.0,44169.0,1.00394527]
[1644258774605,0.42,44170.0,44169.0,1.56934527]
[1644258775403,0.42,44170.0,44169.0,1.16934527]
[1644258776009,0.42,44170.0,44169.0,0.7556]
[1644258777054,0.42,44170.0,44169.0,1.09803511]
[1644258777353,0.42,44170.0,44169.0,1.12069511]
[1644258777754,0.84,44170.0,44169.0,1.09803511]
[1644258777952,0.84,44170.0,44169.0,0.7556]
[1644258778253,0.84,44170.0,44169.0,1.09398104]
[1644258778661,0.84,44170.0,44169.0,1.26889104]
[1644258779156,0.84,44170.0,44169.0,0.93051]
[1644258779555,0.84,44170.0,44169.0,1.16970851]
[1644258779754,0.84,44170.0,44169.0,1.16878925]
[1644258780007,0.84,44170.0,44169.0,0.82959074]
[1644258781002,0.84,44170.0,44169.0,1.03130444]
[1644258781506,0.84,44170.0,44169.0,1.36959932]
[1644258781704,0.84,44170.0,44169.0,1.46959932]
[1644258781904,0.84,44170.0,44169.0,0.92959074]
[1644258787153,0.83984966,44170.0,44169.0,0.92959074]
[1644258787355,0.83984966,44170.0,44169.0,0.36419074]
[1644258788603,0.83484966,44170.0,44169.0,0.36419074]
[1644258789006,0.83484966,44170.0,44169.0,0.26419074]
[1644258790105,0.33484966,44170.0,44169.0,0.26419074]
[1644258790905,0.33484966,44170.0,44169.0,0.6506349]
[1644258791108,0.00083897,44172.0,44170.0,0.85]
[1644258791360,0.00083897,44172.0,44171.0,0.30072358]
[1644258791361,0.00056132,44172.0,44171.0,0.30072358]
[1644258791562,0.00056132,44172.0,44171.0,0.78516448]
[1644258791757,0.00027765,44174.0,44172.0,0.113146]
[1644258791958,0.001,44175.0,44173.0,1.03528877]
[1644258792258,0.00127765,44175.0,44173.0,1.18528877]
[1644258792459,0.001,44175.0,44173.0,1.18528877]
[1644258793259,0.001,44175.0,44174.0,0.33466561]
[1644258793458,0.001,44175.0,44174.0,0.37986561]
[1644258793658,0.001,44175.0,44174.0,0.47986561]
[1644258794462,0.00219691,44186.0,44182.0,0.23474918]
[1644258794661,0.00027854,44184.0,44183.0,0.101773]
[1644258794860,0.00027854,44186.0,44183.0,0.101773]
[1644258795101,0.00219691,44185.0,44183.0,0.101773]
[1644258795701,0.00219691,44185.0,44183.0,0.091773]
[1644258795901,0.79447545,44192.0,44183.0,0.091773]
[1644258796101,0.0002785,44186.0,44183.0,0.091773]
[1644258796300,0.79475395,44192.0,44183.0,0.091773]
[1644258796501,1.908227,44183.0,44182.0,0.56103943]
[1644258797301,1.908227,44183.0,44182.0,0.50446718]
[1644258797700,1.908227,44183.0,44182.0,0.169718]
[1644258798950,1.908227,44183.0,44182.0,0.41615317]
[1644258799457,1.908227,44183.0,44182.0,0.51615317]
[1644258800853,0.00093765,44185.0,44182.0,0.51615317]
[1644258801053,0.00065915,44185.0,44182.0,0.51615317]
[1644258801455,0.0002785,44187.0,44182.0,0.41615317]
[1644258801652,0.0002785,44189.0,44182.0,0.169718]
[1644258801854,0.00065915,44186.0,44182.0,0.169718]
[1644258802056,0.00065915,44186.0,44182.0,0.22628948]
[1644258802254,0.00065915,44186.0,44183.0,0.106572]
[1644258802506,0.00065915,44186.0,44183.0,0.056572]
[1644258802702,0.0002785,44190.0,44182.0,0.24619861]
[1644258802902,0.00065915,44187.0,44182.0,0.24619861]
[1644258803304,0.00065915,44187.0,44182.0,0.13305413]
[1644258803504,0.00065915,44187.0,44182.0,0.01990913]
[1644258803903,0.27801673,44191.0,44182.0,0.01990913]
[1644258803904,0.0002785,44190.0,44182.0,0.01990913]
[1644258804104,0.00093765,44187.0,44182.0,0.01990913]
[1644258804306,0.00065915,44187.0,44182.0,0.01990913]
[1644258804507,0.00065915,44187.0,44182.0,0.00990913]
[1644258804904,0.00065915,44187.0,44182.0,0.03109302]
[1644258805105,0.0002785,44190.0,44182.0,0.02118389]
[1644258805305,0.00065915,44187.0,44182.0,0.02118389]
[1644258805505,0.00065915,44187.0,44182.0,0.07776589]
[1644258805506,0.25925875,44184.0,44182.0,0.07776589]
[1644258805706,0.30925875,44184.0,44182.0,0.02118389]
[1644258806268,0.04236778,44181.0,44178.0,0.02168762]
[1644258806467,0.08075134,44179.0,44178.0,0.01668762]
[1644258806864,0.0002785,44182.0,44178.0,0.01668762]
[1644258807063,0.0002785,44183.0,44178.0,0.01668762]
[1644258807269,0.30453725,44184.0,44178.0,0.01668762]
[1644258807465,0.19318923,44181.0,44178.0,0.01668762]
[1644258807663,0.19318923,44181.0,44178.0,0.01168762]
[1644258808464,0.19318923,44181.0,44171.0,0.169738]
[1644258808670,0.19318923,44181.0,44169.0,0.19413534]
[1644258808671,0.24354532,44174.0,44169.0,0.19413534]
[1644258809466,0.24354532,44174.0,44169.0,0.4048598]
[1644258809666,0.24354532,44174.0,44169.0,0.19413534]
[1644258809872,0.04527851,44178.0,44169.0,0.19413534]
[1644258810104,0.00027854,44176.0,44171.0,0.00073597]
[1644258810302,0.12874338,44178.0,44171.0,0.00073597]
[1644258810505,0.00027854,44177.0,44171.0,0.00073597]
[1644258810701,0.09527851,44178.0,44171.0,0.00073597]
[1644258810902,0.00027854,44177.0,44171.0,0.00073597]
[1644258811102,0.28037088,44178.0,44169.0,0.42198185]
[1644258811303,0.00027854,44177.0,44173.0,0.48517684]
[1644258811503,0.28064942,44178.0,44173.0,0.48517684]
[1644258811703,0.00027854,44177.0,44173.0,0.48517684]
[1644258811904,0.28037088,44178.0,44173.0,0.48517684]
[1644258811905,0.28064942,44178.0,44173.0,0.48517684]
[1644258812108,0.00027854,44177.0,44173.0,0.48517684]
[1644258812305,0.28064942,44178.0,44173.0,0.4844409]
[1644258812509,0.08918213,44177.0,44173.0,0.48517684]
[1644258812705,0.05,44176.0,44173.0,0.48517684]
[1644258813610,0.321717,44175.0,44173.0,0.4844409]
[1644258813856,0.366917,44175.0,44173.0,0.4844409]
[1644258814057,0.416917,44175.0,44173.0,0.4844409]
[1644258814856,0.466917,44175.0,44173.0,0.4844409]
[1644258815063,0.416917,44175.0,44173.0,0.4844409]
[1644258815255,0.566917,44175.0,44173.0,0.4844409]
[1644258815456,0.623531,44175.0,44173.0,0.4844409]
[1644258815655,0.623531,44175.0,44173.0,0.4744409]
[1644258816055,0.573531,44175.0,44173.0,0.4744409]
[1644258817058,0.523531,44175.0,44173.0,0.4744409]
[1644258817358,0.321717,44173.0,44172.0,0.00073596]
[1644258817614,0.366917,44173.0,44172.0,0.00073596]
[1644258817805,0.516917,44173.0,44172.0,0.00073596]
[1644258818007,0.766917,44173.0,44172.0,0.00073596]
[1644258818207,0.816917,44173.0,44169.0,0.17491]
[1644258818408,0.371717,44171.0,44170.0,0.00073598]
[1644258818607,0.67546878,44171.0,44170.0,0.00073598]
[1644258818807,0.85,44170.0,44163.0,0.01958269]
[1644258819006,0.29719515,44166.0,44163.0,0.01958269]
[1644258819208,0.366917,44165.0,44163.0,0.01958269]
[1644258819408,0.0952,44165.0,44163.0,0.01958269]
[1644258819807,0.21878831,44164.0,44163.0,0.01958269]
[1644258820210,0.26878831,44164.0,44163.0,0.01958269]
[1644258820407,0.26878831,44164.0,44154.0,0.02143707]
[1644258820608,0.21149106,44164.0,44155.0,0.056619]
[1644258821457,0.21149106,44164.0,44162.0,0.5002]
[1644258822055,0.21149106,44164.0,44155.0,0.5052]
[1644258822256,0.07610661,44161.0,44155.0,0.5052]
[1644258823057,0.2392859,44156.0,44155.0,0.5052]
[1644258824556,0.2892859,44156.0,44155.0,0.5052]
[1644258824755,0.2892859,44156.0,44155.0,0.504933]
[1644258825206,0.0452,44161.0,44155.0,0.504933]
[1644258825409,0.0452,44161.0,44153.0,0.00073619]
[1644258825607,0.0452,44161.0,44150.0,0.5552]
[1644258825608,0.05,44158.0,44150.0,0.5552]
[1644258825813,0.05,44158.0,44156.0,0.00073616]
[1644258826808,0.05,44158.0,44154.0,0.056619]
[1644258827007,0.05,44158.0,44155.0,0.00073617]
[1644258827208,0.05,44158.0,44155.0,0.17564617]
[1644258828017,0.05,44158.0,44155.0,0.40633363]
[1644258831662,0.05,44158.0,44155.0,0.17491]
[1644258832162,0.25405981,44157.0,44155.0,0.17491]
[1644258832803,0.30405981,44157.0,44155.0,0.17491]
[1644258835712,0.29717124,44157.0,44155.0,0.17491]
[1644258837759,0.25405981,44157.0,44155.0,0.17491]
[1644258839760,0.30405981,44157.0,44155.0,0.17491]
[1644258840407,0.36068881,44157.0,44155.0,0.17491]
[1644258841005,0.30405981,44157.0,44155.0,0.17491]
[1644258842910,0.05,44157.0,44155.0,0.17491]
[1644258843316,0.05,44158.0,44155.0,0.17491]
[1644258845353,0.04989186,44158.0,44155.0,0.17491]
[1644258848012,0.31924565,44157.0,44155.0,0.17491]
[1644258848208,0.42587365,44157.0,44155.0,0.1748413]
[1644258848613,0.65995107,44156.0,44155.0,0.1748413]
[1644258848809,0.466917,44156.0,44155.0,0.1748413]
[1644258849009,0.32122389,44149.0,44148.0,0.0196752]
[1644258849213,0.64294089,44149.0,44148.0,0.0196752]
[1644258849407,0.321717,44149.0,44148.0,0.0196752]
[1644258849709,0.61723612,44149.0,44148.0,7.52e-05]
[1644258849908,0.61723612,44149.0,44145.0,0.05]
[1644258849909,0.85,44148.0,44145.0,0.05]
[1644258850108,0.13735165,44146.0,44145.0,0.05]
[1644258850506,0.45906865,44146.0,44145.0,0.05]
[1644258850907,0.13735165,44146.0,44145.0,0.045]
[1644258851556,0.14235165,44146.0,44145.0,0.045]
[1644258852458,0.13735165,44146.0,44145.0,0.045]
[1644258853460,0.05,44146.0,44145.0,0.045]
[1644258854060,0.0196,44149.0,44145.0,0.045]
[1644258854561,0.02036714,44150.0,44148.0,0.30297861]
[1644258854762,0.02036714,44150.0,44149.0,0.05663]
[1644258856618,0.01856272,44150.0,44149.0,0.05663]
[1644258857223,0.02157677,44154.0,44149.0,0.05663]
[1644258857424,0.02157677,44154.0,44149.0,0.10163]
[1644258857627,0.02157677,44154.0,44152.0,0.045]
[1644258857824,0.02157677,44154.0,44149.0,0.045]
[1644258858123,0.02657677,44154.0,44149.0,0.045]
[1644258858323,0.02657677,44154.0,44151.0,0.00073567]
[1644258858762,0.005,44154.0,44151.0,0.00073567]
[1644258859163,0.11342361,44155.0,44149.0,0.045]
[1644258859361,0.11342361,44155.0,44150.0,0.00073568]
[1644258860063,0.005,44153.0,44150.0,0.00073568]
[1644258860264,0.005,44151.0,44150.0,0.00073568]
[1644258860462,0.005,44151.0,44146.0,0.045]
[1644258860663,0.45423634,44155.0,44149.0,0.00073569]
[1644258861062,0.1370586,44155.0,44149.0,0.00073569]
[1644258861764,0.1370586,44155.0,44146.0,0.045]
[1644258861964,0.4581366,44155.0,44150.0,0.00073568]
[1644258862364,0.1370586,44155.0,44150.0,0.00073568]
[1644258862605,0.005,44151.0,44150.0,0.00073568]
[1644258862805,0.005,44151.0,44147.0,0.056631]
[1644258863004,0.005,44151.0,44150.0,0.00073568]
[1644258863604,0.50356516,44155.0,44150.0,0.00073568]
[1644258863804,0.45356516,44155.0,44150.0,0.00073568]
[1644258864007,0.005,44151.0,44143.0,0.045]
[1644258864209,0.005,44151.0,44150.0,0.00073568]
[1644258864210,0.056641,44151.0,44150.0,0.00073568]
[1644258864406,0.39317734,44151.0,44150.0,0.00073568]
[1644258864608,0.44317734,44151.0,44150.0,0.00073568]
[1644258865207,0.38653634,44151.0,44145.0,0.04646969]
[1644258865408,0.05,44151.0,44148.0,0.0007357]
[1644258865608,0.00353031,44151.0,44148.0,0.0007357]
[1644258866456,0.00353031,44151.0,44145.0,0.04646969]
[1644258866662,0.07022601,44153.0,44147.0,0.00073571]
[1644258866858,0.00353031,44151.0,44148.0,0.04646969]
[1644258867057,0.02022601,44153.0,44148.0,0.04646969]
[1644258867256,0.02022601,44153.0,44147.0,0.00073571]
[1644258867459,0.00353031,44148.0,44147.0,0.00073571]
[1644258867657,0.00353031,44148.0,44142.0,0.00021868]
[1644258867857,0.00353031,44148.0,44145.0,0.00073574]
[1644258868059,0.05,44146.0,44145.0,0.00073574]
[1644258868960,0.05,44146.0,44142.0,0.00021868]
[1644258869165,0.05665,44144.0,44143.0,0.00071122]
[1644258869462,0.47709731,44144.0,44143.0,0.00071122]
[1644258869659,0.67202218,44144.0,44143.0,0.00071122]
[1644258869859,1.09767187,44144.0,44143.0,0.00071122]
[1644258870116,1.09767187,44144.0,44139.0,0.00021868]
[1644258870312,0.321717,44143.0,44138.0,0.00341868]
[1644258870514,0.366917,44143.0,44138.0,0.00341868]
[1644258870710,0.00353031,44139.0,44138.0,0.00341868]
[1644258870910,0.32524731,44139.0,44137.0,0.00371868]
[1644258871111,0.37524731,44139.0,44137.0,0.0035]
[1644258871309,0.321717,44138.0,44137.0,0.0035]
[1644258872512,0.63918672,44138.0,44137.0,0.0035]
[1644258874758,0.321717,44138.0,44137.0,0.0035]
[1644258874963,0.02126267,44141.0,44137.0,0.0035]
[1644258875164,0.02126267,44141.0,44137.0,0.00371868]
[1644258876361,0.02126267,44141.0,44137.0,0.00445398]
[1644258876763,0.01950688,44142.0,44137.0,0.00445398]
[1644258876960,0.00353031,44140.0,44137.0,0.00445398]
[1644258877508,0.00353031,44140.0,44137.0,0.00371868]
[1644258878505,0.321717,44139.0,44137.0,0.00371868]
[1644258878705,0.371717,44139.0,44137.0,0.0035]
[1644258878905,0.11536088,44139.0,44137.0,0.0035]
[1644258879106,0.06536088,44139.0,44137.0,0.0035]
[1644258879309,0.00353031,44140.0,44137.0,0.0035]
[1644258879505,0.00353031,44140.0,44137.0,0.00371868]
[1644258880404,0.48187595,44143.0,44137.0,0.00371868]
[1644258880606,0.50277792,44143.0,44137.0,0.00371868]
[1644258880807,0.07443228,44143.0,44138.0,0.04646969]
[1644258881006,0.07443228,44143.0,44141.0,0.10310769]
[1644258881007,0.02090197,44143.0,44141.0,0.10310769]
[1644258881462,0.02090197,44143.0,44141.0,0.25417669]
[1644258881866,0.02090197,44143.0,44141.0,0.31080869]
[1644258882062,0.02090197,44143.0,44141.0,0.25417069]
[1644258882262,0.02090197,44143.0,44142.0,0.113271]
[1644258882863,0.1,44146.0,44142.0,0.113271]
[1644258883065,0.1,44146.0,44142.0,0.11348968]
[1644258883664,0.1,44146.0,44142.0,0.11422462]
[1644258883867,0.1,44146.0,44142.0,0.10922462]
[1644258884064,0.05,44146.0,44142.0,0.00095362]
[1644258884666,0.05,44146.0,44142.0,0.00021868]
[1644258884865,0.05,44146.0,44142.0,0.00073494]
[1644258885107,0.00353031,44144.0,44142.0,0.00095362]
[1644258885306,0.00039799,44144.0,44142.0,0.00073494]
[1644258885706,0.05,44146.0,44141.0,0.15128768]
[1644258885905,0.05,44146.0,44145.0,0.18910853]
[1644258887306,0.05,44146.0,44143.0,0.00073493]
[1644258888309,0.00039799,44144.0,44142.0,0.00073494]
[1644258888509,0.05039799,44144.0,44142.0,0.00073494]
[1644258888955,0.05039799,44144.0,44142.0,0.00148117]
[1644258889155,0.00039799,44144.0,44142.0,0.00148117]
[1644258889356,0.00039799,44144.0,44142.0,0.00074623]
[1644258889556,0.00039799,44145.0,44142.0,0.00074623]
[1644258889760,0.07102407,44147.0,44142.0,0.00074623]
[1644258889957,0.05,44146.0,44142.0,0.00074623]
[1644258890159,0.07102407,44147.0,44142.0,0.00074623]
[1644258890558,0.00039799,44145.0,44142.0,0.00074623]
[1644258890758,0.00039799,44145.0,44142.0,0.00148117]
[1644258891758,0.00039799,44145.0,44142.0,0.00074623]
[1644258892908,0.00039799,44145.0,44144.0,0.26274871]
[1644258893412,0.06987752,44146.0,44144.0,0.31235072]
[1644258893608,0.01987752,44146.0,44144.0,0.31235072]
[1644258894009,0.00039799,44156.0,44144.0,0.31235072]
[1644258894210,0.00039799,44156.0,44142.0,0.43419691]
[1644258894211,0.19371949,44165.0,44158.0,0.26803547]
[1644258894412,0.00039799,44169.0,44154.0,0.73563011]
[1644258894413,0.19371949,44169.0,44154.0,0.73563011]
[1644258894612,0.00065995,44164.0,44155.0,0.3822735]
[1644258894809,0.00065995,44164.0,44155.0,0.365015]
[1644258895012,0.00065995,44164.0,44157.0,0.05661189]
[1644258895209,0.00065995,44164.0,44163.0,0.44243548]
[1644258895408,0.00027854,44172.0,44163.0,0.49904248]
[1644258895609,0.35427544,44173.0,44163.0,0.30822659]
[1644258895809,0.00019996,44164.0,44163.0,0.30822659]
[1644258896660,0.01827977,44168.0,44163.0,0.53836124]
[1644258896858,0.00019997,44166.0,44163.0,0.53836124]
[1644258897259,0.00019997,44166.0,44164.0,0.101809]
[1644258897457,0.00019997,44166.0,44165.0,0.35709219]
[1644258897857,0.01827977,44168.0,44165.0,0.47029819]
[1644258898058,0.01847974,44168.0,44166.0,0.11320496]
[1644258898258,0.01847974,44168.0,44167.0,0.32889356]
[1644258898461,0.01847974,44168.0,44167.0,0.44209756]
[1644258898660,0.01847974,44168.0,44167.0,0.113204]
[1644258898960,0.01906201,44172.0,44165.0,0.113206]
[1644258898961,0.01878347,44172.0,44165.0,0.113206]
[1644258899159,0.01878347,44172.0,44166.0,0.0452]
[1644258899362,0.00066021,44170.0,44166.0,0.0452]
[1644258900113,0.05066021,44170.0,44166.0,0.0452]
[1644258900315,0.05,44170.0,44166.0,0.0452]
[1644258900512,0.05066021,44170.0,44166.0,0.0452]
[1644258900909,0.00066021,44170.0,44166.0,0.0452]
[1644258901512,0.00027854,44173.0,44166.0,0.0452]
[1644258901711,0.06996778,44174.0,44166.0,0.0452]
[1644258901712,0.00066021,44170.0,44166.0,0.0452]
[1644258902711,0.00027854,44173.0,44166.0,0.0452]
[1644258903015,0.00066021,44170.0,44166.0,0.0052]
[1644258903857,0.00027854,44173.0,44168.0,0.00073324]
[1644258904058,0.00066021,44170.0,44168.0,0.00073324]
[1644258904959,0.05027854,44173.0,44168.0,0.00073324]
[1644258905358,0.00066021,44171.0,44168.0,0.00073324]
[1644258906159,0.02117354,44173.0,44168.0,0.00073324]
[1644258906359,0.020895,44173.0,44168.0,0.00073324]
[1644258906560,0.00066021,44172.0,44168.0,0.00073324]
[1644258907360,0.02117354,44173.0,44168.0,0.00073324]
[1644258907610,0.00066021,44172.0,44168.0,0.00073324]
[1644258908612,0.02117354,44173.0,44168.0,0.00073324]
[1644258908813,0.00066021,44172.0,44166.0,0.0052]
[1644258909011,0.05,44170.0,44166.0,0.0052]
[1644258909215,0.00066021,44172.0,44170.0,0.24796708]
[1644258909613,0.00066021,44172.0,44165.0,0.00074397]
[1644258909812,0.00027854,44173.0,44165.0,0.00074397]
[1644258910012,0.00066021,44173.0,44166.0,0.99732824]
[1644258910213,0.00093875,44173.0,44166.0,0.99732824]
[1644258910718,0.00093875,44173.0,44166.0,1.21989509]
[1644258910913,0.00066021,44173.0,44166.0,0.99732824]
[1644258911115,0.05,44170.0,44166.0,0.99732824]
[1644258911557,0.00066021,44172.0,44166.0,0.99732824]
[1644258911858,0.04,44167.0,44166.0,0.99732824]
[1644258912362,0.04,44172.0,44166.0,0.99732824]
[1644258912660,0.00066021,44169.0,44166.0,0.99732824]
[1644258912860,0.04,44167.0,44166.0,0.99732824]
[1644258913059,0.00066021,44169.0,44166.0,0.99732824]
[1644258913460,0.04,44167.0,44166.0,0.99732824]
[1644258914362,0.00066021,44170.0,44166.0,0.99670855]
[1644258914760,0.01699353,44171.0,44168.0,0.25837013]
[1644258915025,0.00066021,44170.0,44169.0,0.80875385]
[1644258916017,0.056613,44171.0,44169.0,0.80875385]
[1644258916613,0.05634044,44171.0,44169.0,0.80875385]
[1644258917014,0.10634044,44171.0,44169.0,0.80875385]
[1644258918963,0.10634044,44171.0,44169.0,0.80948503]
[1644258919162,0.10634044,44171.0,44170.0,0.50232124]
[1644258919163,0.05,44171.0,44170.0,0.50232124]
[1644258919563,0.14,44172.0,44170.0,0.50232124]
[1644258919763,0.146615,44172.0,44170.0,0.50232124]
[1644258919961,0.05,44171.0,44170.0,0.50232124]
[1644258921664,0.146615,44172.0,44170.0,0.50232124]
[1644258922264,0.145635,44172.0,44170.0,0.50232124]
[1644258923509,0.08902,44172.0,44170.0,0.50232124]
[1644258923713,0.04,44172.0,44170.0,0.50232124]
[1644258924110,0.00065971,44173.0,44170.0,0.50232124]
[1644258924409,0.00065971,44173.0,44171.0,0.22715081]
[1644258924410,0.00019806,44173.0,44171.0,0.22715081]
[1644258924608,0.00019806,44173.0,44172.0,0.26023338]
[1644258925216,0.00019806,44173.0,44172.0,0.27023338]
[1644258925412,0.00027854,44179.0,44172.0,0.27023338]
[1644258925611,0.01970147,44181.0,44178.0,0.01]
[1644258925812,0.00027831,44180.0,44172.0,0.26023338]
[1644258926012,0.0223419,44181.0,44180.0,0.24631759]
[1644258926665,0.01970147,44181.0,44180.0,0.24631759]
[1644258927866,0.01970147,44181.0,44176.0,0.11317997]
[1644258928070,0.04,44179.0,44175.0,0.25231468]
[1644258928467,0.00027828,44181.0,44175.0,0.25231468]
[1644258928667,0.00066021,44183.0,44175.0,0.36549996]
[1644258928668,0.00027828,44182.0,44175.0,0.36549996]
[1644258928872,0.00066021,44183.0,44180.0,0.00073751]
[1644258929067,0.00027828,44182.0,44180.0,0.00073751]
[1644258929267,0.00066021,44181.0,44180.0,0.00073751]
[1644258929468,0.04066021,44181.0,44180.0,0.00073751]
[1644258930313,0.04,44181.0,44180.0,0.00073751]
[1644258930712,0.24524404,44181.0,44180.0,0.00073751]
[1644258931517,0.5667304,44181.0,44180.0,0.00073751]
[1644258932412,0.24524404,44181.0,44180.0,0.00073751]
[1644258934557,0.24497155,44181.0,44180.0,0.00073751]
[1644258935557,0.22997155,44181.0,44180.0,0.00073751]
[1644258936057,0.03972751,44181.0,44180.0,0.00073751]
[1644258936259,0.36144451,44181.0,44180.0,0.00073751]
[1644258936658,0.05,44182.0,44180.0,0.00073751]
[1644258937058,0.05,44182.0,44180.0,0.01101]
[1644258937257,0.05,44182.0,44180.0,0.22409969]
[1644258937711,0.00066021,44183.0,44180.0,0.01101]
[1644258937910,0.00093849,44183.0,44180.0,0.01101]
[1644258938209,0.00066021,44183.0,44180.0,0.01101]
[1644258938408,0.00066021,44183.0,44180.0,0.00073751]
[1644258938612,0.00027828,44184.0,44180.0,0.00073751]
[1644258938809,0.04000579,44185.0,44180.0,0.23173252]
[1644258939009,0.00066021,44184.0,44180.0,0.23173252]
[1644258939310,0.03972751,44182.0,44180.0,0.00073751]
[1644258940009,0.08972751,44182.0,44180.0,0.00073751]
[1644258940209,0.13972751,44182.0,44180.0,0.00073751]
[1644258940411,0.31624122,44181.0,44180.0,0.00073751]
[1644258940610,0.63795822,44181.0,44180.0,0.00073751]
[1644258940914,0.31624122,44181.0,44180.0,0.00073751]
[1644258941561,0.66008494,44182.0,44180.0,0.00073751]
[1644258942559,0.99926249,44180.0,44175.0,0.150953]
[1644258942760,0.03972751,44176.0,44175.0,0.150953]
[1644258945308,0.08972751,44176.0,44175.0,0.150953]
[1644258945912,0.08972751,44176.0,44175.0,0.100953]
[1644258946112,0.41144451,44176.0,44175.0,0.100953]
[1644258946417,0.321717,44174.0,44166.0,0.01915097]
[1644258946612,0.03972751,44167.0,44166.0,0.01915097]
[1644258946812,0.40664451,44167.0,44166.0,0.01915097]
[1644258947218,0.60664451,44167.0,44166.0,0.01915097]
[1644258947412,0.60664451,44167.0,44166.0,0.03980161]
[1644258947609,0.60664451,44167.0,44166.0,0.02065064]
[1644258949059,0.60664451,44167.0,44160.0,0.26560044]
[1644258949260,0.056618,44166.0,44160.0,0.26560044]
[1644258949460,0.101818,44166.0,44160.0,0.26560044]
[1644258949963,0.03972751,44164.0,44160.0,0.26560044]
[1644258951061,0.0006602,44164.0,44160.0,0.26560044]
[1644258951362,0.0006602,44164.0,44162.0,0.06688604]
[1644258951961,1.0452,44166.0,44162.0,0.06688604]
[1644258952161,0.00066021,44165.0,44162.0,0.06688604]
[1644258952620,0.00038779,44165.0,44162.0,0.06688604]
[1644258953214,1.0,44166.0,44162.0,0.06688604]
[1644258957261,1.03972751,44166.0,44162.0,0.06688604]
[1644258957459,1.03972751,44166.0,44162.0,0.01027249]
[1644258958260,0.98972751,44162.0,44160.0,0.32221771]
[1644258959061,0.98972751,44162.0,44160.0,0.26560044]
[1644258959261,0.98972751,44162.0,44159.0,0.21503833]
[1644258959460,0.98972751,44162.0,44157.0,0.11322655]
[1644258960913,0.98972751,44162.0,44157.0,0.34424193]
[1644258963417,0.98972751,44162.0,44158.0,0.056616]
[1644258963617,0.98972751,44162.0,44157.0,0.45408993]
[1644258963861,0.98972751,44162.0,44160.0,0.05661436]
[1644258964261,0.98972751,44162.0,44160.0,0.05161436]
[1644258964862,0.05,44164.0,44160.0,0.05161436]
[1644258965862,0.21738614,44167.0,44160.0,0.05161436]
[1644258966263,0.21672666,44167.0,44160.0,0.29596147]
[1644258966663,0.21738616,44167.0,44160.0,0.29596147]
[1644258967064,0.21738616,44167.0,44160.0,0.05161436]
[1644258967265,0.05,44162.0,44159.0,0.00069888]
[1644258969224,0.05,44162.0,44157.0,0.10984255]
[1644258970225,0.04972748,44162.0,44157.0,0.11011507]
[1644258971267,0.00167367,44163.0,44161.0,0.00027252]
[1644258971466,0.05140115,44163.0,44159.0,0.00027252]
[1644258971665,0.5,44162.0,44156.0,0.19033264]
[1644258971865,0.55,44162.0,44155.0,0.14521466]
[1644258972468,0.55,44162.0,44157.0,0.11322655]
[1644258973569,0.05,44162.0,44157.0,0.11322655]
[1644258973969,0.00167007,44161.0,44159.0,0.00070278]
[1644258975017,4.162897,44160.0,44159.0,0.00070278]
[1644258975214,4.160897,44160.0,44159.0,0.00070278]
[1644258975815,4.16080624,44160.0,44159.0,0.00070278]
[1644258978959,4.16247452,44160.0,44159.0,0.00070278]
[1644258987167,4.48419152,44160.0,44159.0,0.00070278]
[1644258987369,4.26247452,44160.0,44159.0,0.00070278]
[1644258988167,4.58419152,44160.0,44159.0,0.00070278]
[1644258989268,4.26247452,44160.0,44159.0,0.00070278]
[1644258991015,4.30767452,44160.0,44159.0,0.00070278]
[1644258991816,4.82326357,44160.0,44159.0,0.00070278]
[1644258992015,4.30767452,44160.0,44159.0,0.00070278]
[1644258992217,0.25190238,44156.0,44150.0,0.00803594]
[1644258992417,0.06089722,44151.0,44150.0,0.00803594]
[1644258992616,1.00290167,44151.0,44150.0,0.00803594]
[1644258992817,0.7746055,44151.0,44150.0,0.00803594]
[1644258993315,0.8246055,44151.0,44150.0,0.00803594]
[1644258994363,0.8812495,44151.0,44150.0,0.00803594]
[1644258994766,1.22696428,44151.0,44150.0,0.00803594]
[1644258995366,1.02032028,44151.0,44150.0,0.00803594]
[1644258995567,0.37781422,44151.0,44150.0,0.00803594]
[1644258995768,0.05609722,44151.0,44150.0,0.00803594]
[1644258996367,0.01089722,44151.0,44150.0,0.00803594]
[1644258997168,0.22317513,44153.0,44149.0,0.24425973]
[1644258997821,0.321717,44152.0,44149.0,0.24425973]
[1644258998019,0.22317513,44153.0,44149.0,0.2449628]
[1644258999019,0.22317513,44153.0,44149.0,0.24425973]
[1644258999224,0.00172238,44151.0,44150.0,0.00081187]
[1644258999822,0.05097488,44151.0,44150.0,0.00081187]
[1644259000421,0.37269188,44151.0,44150.0,0.00081187]
[1644259000623,0.09617488,44151.0,44150.0,0.00081187]
[1644259001024,0.53808836,44151.0,44145.0,0.00021868]
[1644259001266,0.53808836,44151.0,44144.0,0.0011]
[1644259001267,0.0492525,44146.0,44144.0,0.0011]
[1644259001464,0.00593736,44140.0,44138.0,0.0011]
[1644259001665,0.366917,44140.0,44138.0,0.0011]
[1644259002065,0.71001354,44140.0,44138.0,0.0011]
[1644259002466,0.38829654,44140.0,44138.0,0.0011]
[1644259002666,0.0944525,44140.0,44138.0,0.0011]
[1644259003466,0.0452,44140.0,44138.0,0.0011]
[1644259003665,0.0944525,44140.0,44138.0,0.0011]